bitfinex/quotes_SOLUSD_20240825
["timestamp","ask_amount","ask_price","bid_price","bid_amount"]
[1724592975759,6.2757,159.35,159.28,12.6589]
[1724592975987,0.8291689,159.37,159.28,12.6589]
[1724592976670,6.2763,159.33,159.28,12.6589]
[1724592977059,6.2767,159.32,159.28,6.3808]
[1724592978797,6.2776,159.3,159.28,6.3808]
[1724592980478,6.2767,159.32,159.29,1.25554353]
[1724592981795,51.2772,159.31,159.28,6.3808]
[1724592983369,45.0,159.31,159.28,6.3808]
[1724592983783,6.2778,159.29,159.28,6.3808]
[1724592984193,51.2774,159.31,159.28,6.3808]
[1724592984888,6.2775,159.3,159.28,6.3808]
[1724592985669,51.2771,159.31,159.28,6.3808]
[1724592985881,6.2776,159.3,159.28,6.3808]
[1724592986277,51.2771,159.31,159.28,6.3808]
[1724592988528,6.2766,159.33,159.28,7.63634068]
[1724592988697,6.2766,159.33,159.28,6.3808]
[1724592988996,0.8291689,159.37,159.28,6.3808]
[1724592988997,6.2767,159.32,159.28,6.3808]
[1724592989492,6.277,159.31,159.28,6.3808]
[1724592992787,51.2775,159.3,159.28,6.3808]
[1724592993173,6.2778,159.29,159.28,6.3808]
[1724592994484,51.2774,159.3,159.28,6.3808]
[1724592998708,6.2778,159.29,159.26,15.3462]
[1724593000094,45.0,159.3,159.26,15.3462]
[1724593000514,51.2776,159.3,159.26,15.3462]
[1724593001494,6.2778,159.29,159.26,15.3462]
[1724593002531,51.2775,159.3,159.26,15.3462]
[1724593003114,45.0,159.3,159.26,15.3462]
[1724593004092,6.2786,159.27,159.26,15.3462]
[1724593004297,45.0,159.3,159.26,15.3462]
[1724593005019,6.2781,159.29,159.26,15.3462]
[1724593006299,45.0,159.3,159.24,6.0985]
[1724593006511,6.2787,159.27,159.24,6.0985]
[1724593006695,45.0,159.3,159.24,7.35434339]
[1724593007620,6.2782,159.28,159.24,7.35434339]
[1724593008895,45.0,159.3,159.24,7.35426584]
[1724593009300,6.2782,159.28,159.24,6.0985]
[1724593009721,6.2782,159.28,159.24,7.35426828]
[1724593010020,45.0,159.3,159.24,7.35426828]
[1724593010208,6.2786,159.27,159.24,7.35426828]
[1724593010401,6.2783,159.28,159.24,7.35426828]
[1724593010729,51.2787,159.27,159.24,6.0985]
[1724593011037,45.0,159.3,159.24,6.0985]
[1724593011038,6.2792,159.26,159.24,6.0985]
[1724593012225,6.2779,159.29,159.24,6.0985]
[1724593012525,45.0,159.28,159.24,7.35426948]
[1724593013815,51.2784,159.28,159.24,7.35426948]
[1724593016127,15.5094,159.35,159.25,1.25577221]
[1724593016330,6.277,159.32,159.26,7.85007228]
[1724593016624,6.277,159.32,159.26,6.2786]
[1724593017532,6.2759,159.34,159.28,21.9727]
[1724593017826,6.2763,159.33,159.28,16.95030996]
[1724593018710,45.0,159.32,159.28,15.6949]
[1724593019928,51.2768,159.32,159.28,15.6949]
[1724593020107,51.2768,159.32,159.27,16.5613]
[1724593020817,6.2775,159.3,159.27,16.5613]
[1724593022034,51.277,159.32,159.27,16.5613]
[1724593022619,6.2772,159.31,159.27,16.5613]
[1724593022819,45.0,159.3,159.27,16.5613]
[1724593025636,45.0,159.3,159.24,21.7971]
[1724593025939,6.2782,159.28,159.24,6.0985]
[1724593026103,6.2779,159.29,159.24,6.0985]
[1724593026419,51.2782,159.28,159.24,6.0985]
[1724593029129,51.2782,159.28,159.24,7.35428572]
[1724593029339,51.2782,159.28,159.24,6.0985]
[1724593030338,51.2782,159.28,159.23,16.2287]
[1724593030339,45.0,159.28,159.23,16.2287]
[1724593030525,6.2798,159.25,159.23,16.2287]
[1724593030843,6.279,159.26,159.23,16.2287]
[1724593031031,6.2794,159.25,159.23,16.2287]
[1724593031718,6.279,159.26,159.23,16.2287]
[1724593032048,51.2795,159.25,159.23,16.2287]
[1724593032231,6.2795,159.25,159.23,16.2287]
[1724593034547,51.2782,159.28,159.23,16.2287]
[1724593034733,45.0,159.28,159.23,16.2287]
[1724593035035,6.2789,159.27,159.23,16.2287]
[1724593035240,45.0,159.26,159.23,16.2287]
[1724593035752,51.2791,159.26,159.23,16.2287]
[1724593041075,6.2794,159.25,159.23,16.2287]
[1724593041432,6.2794,159.25,159.2,28.0522]
[1724593042540,45.0,159.24,159.2,28.0522]
[1724593042735,6.2802,159.23,159.2,6.0684]
[1724593043128,45.0,159.22,159.2,6.0684]
[1724593043329,51.2806,159.22,159.2,6.0684]
[1724593044871,45.0,159.22,159.2,6.0684]
[1724593046772,45.0,159.22,159.18,22.5108]
[1724593046951,51.2806,159.22,159.18,16.2287]
[1724593049566,6.281,159.21,159.18,16.2287]
[1724593049771,45.0,159.2,159.18,16.2287]
[1724593049952,6.281,159.21,159.18,16.2287]
[1724593050679,6.2806,159.22,159.18,16.2287]
[1724593050881,45.0,159.21,159.18,16.2287]
[1724593051760,51.2811,159.21,159.18,16.2287]
[1724593052286,51.2811,159.21,159.17,15.7064]
[1724593053575,6.2814,159.2,159.16,6.2469]
[1724593053774,45.0,159.19,159.16,6.2469]
[1724593054680,45.0,159.19,159.14,30.8207]
[1724593054851,6.2822,159.18,159.14,30.8207]
[1724593055955,51.2818,159.19,159.14,30.8207]
[1724593059289,6.2822,159.18,159.14,30.8207]
[1724593059589,45.0,159.17,159.14,15.1115]
[1724593059889,51.2826,159.17,159.12,12.5314]
[1724593061382,6.283,159.16,159.12,6.2469]
[1724593061773,45.0,159.15,159.12,6.2469]
[1724593062657,6.2838,159.14,159.1,15.1115]
[1724593062887,45.0,159.13,159.1,21.3968]
[1724593063070,45.0,159.15,159.1,21.3968]
[1724593064089,51.2834,159.15,159.1,21.3968]
[1724593065862,51.2834,159.15,159.1,30.8246]
[1724593066167,45.0,159.15,159.1,30.8246]
[1724593066999,45.0,159.15,159.11,6.2849]
[1724593080013,6.2837,159.14,159.1,15.7131]
[1724593080182,6.2837,159.14,159.09,6.2854]
[1724593080183,45.0,159.13,159.09,6.2854]
[1724593080598,45.0,159.13,159.1,6.2852]
[1724593080913,45.0,159.14,159.1,6.2852]
[1724593083320,45.0,159.14,159.1,22.8345]
[1724593083489,16.0622,159.22,159.11,1.2569452]
[1724593083810,16.0622,159.22,159.1,16.5493]
[1724593084610,6.2822,159.18,159.13,6.2838]
[1724593084819,45.0,159.17,159.13,6.2838]
[1724593084982,45.0,159.17,159.14,6.2837]
[1724593085317,45.0,159.18,159.14,6.2837]
[1724593085488,22.62308221,159.26,159.14,6.0556]
[1724593085697,38.32078221,159.26,159.15,16.96505936]
[1724593086001,6.2803,159.23,159.18,6.2821]
[1724593086607,16.0622,159.26,159.17,1.25633563]
[1724593086924,379.9,159.27,159.2,21.9846]
[1724593087085,386.179,159.27,159.2,21.9846]
[1724593087287,6.2792,159.26,159.2,21.9846]
[1724593090725,45.0,159.25,159.2,21.9846]
[1724593091719,51.2795,159.25,159.2,21.9846]
[1724593092902,51.2795,159.25,159.2,15.7033]
[1724593097405,6.279,159.26,159.21,12.3363]
[1724593098417,15.6947,159.29,159.21,6.0556]
[1724593098726,6.2794,159.25,159.21,6.0556]
[1724593098899,45.0,159.24,159.21,6.0556]
[1724593099608,6.2794,159.25,159.21,6.0556]
[1724593100921,6.2794,159.25,159.21,7.31166194]
[1724593101225,6.2794,159.25,159.21,6.0556]
[1724593102223,6.2794,159.25,159.21,7.31166166]
[1724593102602,6.2794,159.25,159.21,6.0556]
[1724593102802,6.2794,159.25,159.21,7.31165968]
[1724593104106,6.2794,159.25,159.21,6.0556]
[1724593104311,6.2798,159.24,159.21,6.0556]
[1724593104822,6.2798,159.24,159.21,7.31166088]
[1724593105025,6.2798,159.24,159.21,6.0556]
[1724593105611,15.6947,159.29,159.21,6.0556]
[1724593105805,45.0,159.28,159.21,6.0556]
[1724593106414,6.2798,159.24,159.21,6.0556]
[1724593107326,45.0,159.28,159.17,21.8289]
[1724593107539,6.2806,159.23,159.17,21.8289]
[1724593108201,45.0,159.22,159.17,21.8289]
[1724593108422,45.0,159.22,159.18,7.53826812]
[1724593110323,34.90433316,159.3,159.2,15.7034]
[1724593110521,6.2794,159.26,159.2,21.9847]
[1724593110727,6.2794,159.26,159.21,1.25595134]
[1724593111312,6.2794,159.26,159.2,21.9847]
[1724593113938,6.2795,159.25,159.2,21.9847]
[1724593114128,6.2795,159.25,159.21,1.25595129]
[1724593116236,6.279,159.26,159.21,7.53685129]
[1724593116441,6.279,159.26,159.21,6.2809]
[1724593116736,6.279,159.26,159.22,1.25595099]
[1724593116913,6.279,159.26,159.21,6.2809]
[1724593118544,6.279,159.26,159.21,7.53685262]
[1724593118713,6.2794,159.25,159.21,7.53685262]
[1724593119210,6.2794,159.25,159.21,1.25595262]
[1724593119438,6.2794,159.25,159.2,21.9847]
[1724593120044,51.2798,159.24,159.2,21.9847]
[1724593120250,51.2798,159.24,159.2,15.7034]
[1724593131367,51.2798,159.24,159.21,1.57204789]
[1724593131668,6.2802,159.23,159.19,22.6526]
[1724593131870,6.2802,159.23,159.2,1.57204948]
[1724593132078,6.2802,159.23,159.21,1.57204948]
[1724593132359,6.2802,159.23,159.19,22.6526]
[1724593132563,6.2802,159.23,159.2,1.57204916]
[1724593132748,6.2802,159.23,159.19,22.6526]
[1724593132749,6.2802,159.23,159.21,1.57204916]
[1724593132945,6.2806,159.22,159.19,16.3709]
[1724593133146,6.2806,159.22,159.2,1.57218762]
[1724593133345,6.2806,159.22,159.19,16.3709]
[1724593133547,6.2806,159.22,159.2,1.57218744]
[1724593133765,6.2806,159.22,159.19,16.3709]
[1724593133963,6.2806,159.22,159.2,1.5722111]
[1724593134138,6.2806,159.22,159.19,16.3709]
[1724593134971,45.0,159.21,159.17,6.1226]
[1724593135172,45.0,159.24,159.18,1.57223409]
[1724593135375,45.0,159.25,159.19,1.57223409]
[1724593135673,45.0,159.25,159.17,6.1226]
[1724593136046,45.0,159.25,159.18,1.57223589]
[1724593136365,45.0,159.25,159.19,1.57223589]
[1724593136559,6.2814,159.2,159.17,6.1226]
[1724593136765,45.0,159.19,159.18,1.57223764]
[1724593138981,45.0,159.19,159.18,1.57223867]
[1724593140050,6.2806,159.22,159.18,1.57223867]
[1724593140255,45.0,159.21,159.18,6.2821]
[1724593140466,6.2798,159.24,159.19,6.2816]
[1724593140664,6.2798,159.24,159.19,7.53781757]
[1724593141061,21.9887,159.29,159.2,1.5721345]
[1724593141264,6.279,159.26,159.21,6.2809]
[1724593142649,45.0,159.25,159.21,6.2809]
[1724593145486,51.2794,159.25,159.2,21.984]
[1724593150078,6.2798,159.24,159.2,21.984]
[1724593150278,45.0,159.23,159.2,21.984]
[1724593150900,45.0,159.23,159.2,15.7027]
[1724593151277,45.0,159.23,159.2,21.984]
[1724593151470,6.2795,159.25,159.2,21.984]
[1724593151471,45.0,159.24,159.2,21.984]
[1724593152304,45.0,159.24,159.21,21.5559]
[1724593153399,45.0,159.24,159.21,15.275]
[1724593154692,45.0,159.24,159.21,21.556]
[1724593155203,45.0,159.25,159.22,12.3252]
[1724593155498,45.0,159.26,159.22,12.3252]
[1724593156781,45.0,159.26,159.22,13.5811414]
[1724593157301,45.0,159.26,159.22,12.3252]
[1724593159806,45.0,159.26,159.23,6.2801]
[1724593160108,45.0,159.26,159.22,6.0447]
[1724593160109,6.2783,159.28,159.24,6.2798]
[1724593160317,45.0,159.27,159.24,6.2798]
[1724593162605,45.0,159.28,159.24,6.2798]
[1724593167521,51.2782,159.28,159.24,6.2798]
[1724593167707,51.2782,159.28,159.23,6.2801]
[1724593168105,6.2786,159.27,159.22,28.026]
[1724593168299,45.0,159.26,159.22,28.026]
[1724593169322,6.2783,159.28,159.23,6.2799]
[1724593169494,45.0,159.27,159.23,6.2799]
[1724593172027,45.0,159.27,159.23,7.53576466]
[1724593173428,45.0,159.27,159.23,6.2799]
[1724593176732,6.2783,159.28,159.24,6.2797]
[1724593179536,45.0,159.27,159.23,6.2801]
[1724593193239,51.2786,159.27,159.23,6.2801]
[1724593194359,51.2786,159.27,159.22,21.7455]
[1724593195459,51.2786,159.27,159.22,28.0259]
[1724593195850,45.0,159.27,159.23,6.2801]
[1724593199867,45.0,159.27,159.22,21.7455]
[1724593200042,51.2787,159.27,159.23,1.57181687]
[1724593200362,45.0,159.27,159.22,6.0447]
[1724593200575,6.279,159.26,159.22,6.0447]
[1724593200872,45.0,159.25,159.22,6.0447]
[1724593201038,45.0,159.25,159.16,6.0701]
[1724593201241,6.2818,159.19,159.16,6.0701]
[1724593201445,45.0,159.18,159.16,6.0701]
[1724593202269,6.2814,159.2,159.16,6.0701]
[1724593202270,45.0,159.19,159.16,6.0701]
[1724593204358,51.282,159.19,159.16,6.0701]
[1724593206047,6.2823,159.18,159.15,15.6529]
[1724593206351,45.0,159.17,159.12,6.223]
[1724593206765,6.283,159.16,159.12,6.223]
[1724593206958,45.0,159.15,159.12,6.223]
[1724593207272,51.2834,159.15,159.12,6.223]
[1724593208275,45.0,159.15,159.12,6.223]
[1724593208483,51.283,159.16,159.12,6.223]
[1724593209472,6.2834,159.15,159.12,6.223]
[1724593209775,45.0,159.14,159.12,6.223]
[1724593209973,45.0,159.14,159.07,6.223]
[1724593210182,6.2849,159.12,159.07,14.08245601]
[1724593210386,45.0,159.11,159.07,12.5095]
[1724593211476,51.2849,159.11,159.07,6.223]
[1724593212259,45.0,159.11,159.07,6.223]
[1724593212484,6.2841,159.13,159.07,7.48017181]
[1724593212669,45.0,159.12,159.07,6.223]
[1724593213557,45.0,159.12,159.08,6.2859]
[1724593220571,6.285,159.11,159.07,6.223]
[1724593220778,45.0,159.1,159.07,6.223]
[1724593222388,45.0,159.11,159.07,6.223]
[1724593222693,45.0,159.11,159.07,12.5094]
[1724593223278,45.0,159.11,159.07,13.76659322]
[1724593223794,45.0,159.11,159.07,12.5094]
[1724593226099,51.285,159.11,159.06,31.4637]
[1724593227191,6.2855,159.1,159.06,15.7474]
[1724593227399,45.0,159.09,159.06,15.7474]
[1724593228703,45.0,159.09,159.06,22.0341]
[1724593228907,45.0,159.09,159.03,21.8452]
[1724593229408,45.0,159.09,159.05,6.2869]
[1724593229613,45.0,159.1,159.06,6.2868]
[1724593230197,51.2857,159.1,159.03,21.8452]
[1724593230424,51.2857,159.1,159.04,6.2876]
[1724593231091,6.2861,159.09,159.03,28.1332]
[1724593231401,45.0,159.08,159.03,28.1332]
[1724593231719,45.0,159.08,159.01,6.2889]
[1724593231720,6.2872,159.06,159.01,6.2889]
[1724593232018,45.0,159.08,159.01,6.2889]
[1724593232019,45.0,159.05,159.01,6.2889]
[1724593232203,45.0,159.06,159.01,6.2889]
[1724593233223,51.2871,159.06,159.01,6.2889]
[1724593233808,6.2874,159.05,159.0,22.0124]
[1724593234116,51.2879,159.04,159.0,15.7232]
[1724593234424,6.2879,159.04,159.0,15.7232]
[1724593234628,45.0,159.06,158.98,15.9206]
[1724593234629,51.2881,159.03,158.98,15.9206]
[1724593234799,6.2881,159.03,158.98,15.9206]
[1724593235113,45.0,159.02,158.98,15.9206]
[1724593235501,45.0,159.02,158.96,15.7264]
[1724593235502,6.289,159.01,158.96,15.7264]
[1724593235817,45.0,159.0,158.96,15.7264]
[1724593236799,45.0,159.0,158.97,6.2904]
[1724593237004,45.0,159.01,158.97,6.2904]
[1724593240146,6.2876,159.05,158.98,15.7243]
[1724593240320,6.2869,159.06,159.0,6.2889]
[1724593241604,6.2873,159.05,159.0,6.2889]
[1724593242308,45.0,159.04,159.0,6.2889]
[1724593243029,51.2877,159.04,158.99,6.2896]
[1724593243537,45.0,159.04,158.98,15.7243]
[1724593243717,45.0,159.04,159.0,6.2892]
[1724593244622,6.287,159.06,159.01,6.2888]
[1724593244848,6.2875,159.05,159.0,6.2892]
[1724593245324,6.2869,159.06,159.01,6.2887]
[1724593245912,45.0,159.05,159.0,6.2892]
[1724593246539,51.2875,159.05,159.0,6.2892]
[1724593247440,45.0,159.05,159.0,6.2892]
[1724593248324,51.2875,159.05,159.0,6.2892]
[1724593249451,45.0,159.05,158.98,22.0141]
[1724593249953,45.0,159.05,158.96,6.2908]
[1724593250255,45.0,159.06,158.96,6.2908]
[1724593250421,6.0332,159.05,158.96,6.2908]
[1724593250748,6.29,158.99,158.94,15.7282]
[1724593251136,45.0,158.98,158.94,15.7282]
[1724593251322,51.2901,158.98,158.94,15.7282]
[1724593252754,51.2901,158.98,158.93,6.2917]
[1724593253124,6.2905,158.97,158.92,6.2924]
[1724593253327,45.0,158.96,158.92,6.2924]
[1724593253726,45.0,158.96,158.91,28.0257]
[1724593253727,51.2909,158.96,158.91,28.0257]
[1724593255342,51.2909,158.96,158.91,22.0249]
[1724593256326,6.2897,158.99,158.94,6.2916]
[1724593257152,6.2891,159.01,158.95,6.2911]
[1724593257471,6.2886,159.02,158.97,6.2901]
[1724593257838,6.2886,159.02,158.96,22.0172]
[1724593258239,6.2886,159.02,158.97,6.2904]
[1724593258744,6.2881,159.03,158.98,6.29]
[1724593259163,6.2877,159.04,158.98,6.29]
[1724593259959,6.2882,159.03,158.98,6.29]
[1724593260246,23.21662076,159.07,158.97,6.2904]
[1724593260247,6.2885,159.02,158.97,6.2904]
[1724593260744,45.0,159.01,158.97,6.2904]
[1724593261123,6.2893,159.0,158.96,31.345]
[1724593261326,45.0,158.99,158.94,12.7046]
[1724593261539,51.2892,159.01,158.95,15.7281]
[1724593261848,45.0,159.01,158.96,6.2905]
[1724593262049,45.0,159.01,158.97,6.2904]
[1724593262252,6.2885,159.02,158.97,6.2904]
[1724593263647,6.2874,159.05,159.0,6.2892]
[1724593263950,6.2865,159.07,159.02,6.2884]
[1724593264342,6.2865,159.07,159.0,15.7223]
[1724593264343,6.2869,159.06,159.01,6.2889]
[1724593264543,6.2861,159.08,159.02,7.54602698]
[1724593265552,6.2877,159.04,159.0,6.5643]
[1724593265738,31.9344,159.11,159.0,12.8535]
[1724593265739,6.2873,159.05,159.0,12.8535]
[1724593265948,6.2873,159.05,159.0,6.5643]
[1724593266242,6.2865,159.07,159.0,6.5643]
[1724593266557,6.2865,159.07,159.01,1.25759693]
[1724593266857,45.0,159.06,159.01,7.54639693]
[1724593267946,6.2873,159.05,159.0,6.5643]
[1724593268149,6.2873,159.05,159.0,12.8534]
[1724593268341,45.0,159.04,159.0,12.8534]
[1724593268729,45.0,159.04,159.0,6.5643]
[1724593268929,45.0,159.04,158.99,15.0522]
[1724593269334,6.2881,159.03,158.99,15.0522]
[1724593269534,45.0,159.02,158.98,15.7243]
[1724593269949,6.2897,158.99,158.96,6.5643]
[1724593270168,45.0,158.98,158.95,15.0522]
[1724593270369,45.0,158.98,158.92,12.8564]
[1724593270576,45.0,158.98,158.92,6.5643]
[1724593271384,51.2904,158.98,158.92,6.5643]
[1724593271562,6.2906,158.97,158.92,6.5643]
[1724593271876,45.0,158.96,158.92,6.5643]
[1724593272087,15.7211,159.03,158.92,6.5643]
[1724593272088,6.2896,159.0,158.94,6.2913]
[1724593272261,45.0,158.99,158.95,1.25807672]
[1724593272575,45.0,159.0,158.93,15.73]
[1724593272874,45.0,159.0,158.95,6.2909]
[1724593274672,6.2901,158.98,158.93,15.73]
[1724593274852,45.0,158.97,158.93,15.73]
[1724593276973,6.2909,158.96,158.92,6.5643]
[1724593277175,45.0,158.95,158.92,6.5643]
[1724593279057,6.2904,158.98,158.92,12.8567]
[1724593279265,6.2904,158.98,158.93,6.2919]
[1724593279462,6.2897,158.99,158.92,22.2945]
[1724593280483,6.2897,158.99,158.94,6.2916]
[1724593280680,45.0,158.98,158.94,6.2916]
[1724593281183,16.2219,159.05,158.95,1.25820579]
[1724593282384,22.75284884,159.09,158.98,21.6165]
[1724593282584,6.2871,159.06,159.01,6.2888]
[1724593282891,6.2871,159.06,159.0,6.2892]
[1724593284865,6.2871,159.06,158.94,26.3438041]
[1724593284866,45.0,159.05,158.94,26.3438041]
[1724593285076,45.0,159.05,158.95,31.57407452]
[1724593285290,45.0,159.05,158.96,1.5740744]
[1724593286588,45.0,159.05,159.0,6.2892]
[1724593286895,51.2873,159.05,159.0,6.2892]
[1724593287080,1.2577041,159.04,159.0,6.2892]
[1724593290407,1.2577041,159.04,158.99,22.0129]
[1724593290766,7.5455041,159.04,158.99,22.0129]
[1724593290972,7.5455041,159.04,158.99,15.7233]
[1724593290973,51.2881,159.03,158.99,15.7233]
[1724593291203,52.5462041,159.02,158.97,6.2904]
[1724593291500,7.5466041,159.01,158.96,15.7269]
[1724593291706,51.2893,159.0,158.96,15.7269]
[1724593291915,45.0,159.0,158.93,22.0219]
[1724593292070,1.2577041,158.99,158.94,6.2916]
[1724593293206,45.0,159.0,158.94,6.2916]
[1724593293602,6.2897,158.99,158.94,6.2916]
[1724593293906,45.0,158.98,158.94,6.2916]
[1724593302244,45.0,158.98,158.95,6.2909]
[1724593302417,45.0,158.99,158.95,6.2909]
[1724593302619,46.2577041,158.99,158.95,6.2909]
[1724593303536,52.5474041,158.99,158.94,6.2916]
[1724593303737,51.2897,158.99,158.94,6.2916]
[1724593304032,7.5479041,158.98,158.93,15.7301]
[1724593304243,45.0,158.97,158.93,15.7301]
[1724593305328,6.2913,158.95,158.9,6.2932]
[1724593305642,45.0,158.94,158.9,7.55168109]
[1724593305818,45.0,158.94,158.9,6.2932]
[1724593306019,45.0,158.95,158.9,6.2932]
[1724593307660,45.0,158.95,158.91,6.2927]
[1724593311337,46.2577041,158.95,158.91,6.2927]
[1724593311640,45.0,158.95,158.91,6.2927]
[1724593313541,52.5490041,158.95,158.9,6.2932]
[1724593314540,6.2919,158.94,158.89,22.0276]
[1724593314744,46.2577041,158.93,158.89,22.0276]
[1724593315343,1.2577041,158.92,158.89,22.0276]
[1724593315743,45.0,158.93,158.89,22.0276]
[1724593317359,46.2577041,158.93,158.89,22.0276]
[1724593317661,7.5502041,158.92,158.88,6.294]
[1724593317859,45.0,158.91,158.88,6.294]
[1724593318259,1.2577041,158.9,158.86,22.0314]
[1724593318570,45.0,158.91,158.86,22.0314]
[1724593318858,45.0,158.91,158.87,6.2943]
[1724593320271,45.0,158.91,158.88,6.2939]
[1724593320451,6.2921,158.93,158.89,6.2936]
[1724593320659,6.2917,158.94,158.89,6.2936]
[1724593321364,16.0181,158.96,158.9,1.25860975]
[1724593321567,3.13479726,159.0,158.9,1.25860975]
[1724593321568,6.29,158.99,158.9,1.25860975]
[1724593322062,1.2577041,158.98,158.91,15.7314]
[1724593322363,1.2577041,158.98,158.92,6.2924]
[1724593322867,6.2901,158.98,158.93,6.292]
[1724593324155,6.4432,159.02,158.94,1.25830854]
[1724593324558,16.4635,159.04,158.94,1.25830854]
[1724593324764,16.4635,159.04,158.95,15.7272]
[1724593324964,16.4635,159.04,158.96,1.25788342]
[1724593325171,6.52594414,159.07,158.97,1.25787598]
[1724593325371,6.2865,159.07,159.02,6.2885]
[1724593325751,16.4635,159.08,159.02,7.54613676]
[1724593326375,22.7496,159.08,159.02,7.54613676]
[1724593326961,16.4635,159.08,159.03,6.288]
[1724593327551,24.0073041,159.08,159.03,6.288]
[1724593327950,1.2577041,159.07,159.03,6.288]
[1724593328172,24.0073041,159.08,159.03,6.288]
[1724593328565,1.2577041,159.07,159.02,6.2885]
[1724593328863,45.0,159.07,159.03,6.288]
[1724593329482,6.52538153,159.12,159.05,6.2873]
[1724593329483,6.2853,159.11,159.05,6.2873]
[1724593329784,6.2853,159.11,159.05,7.54463477]
[1724593330266,6.2853,159.11,159.06,6.2869]
[1724593331286,6.2853,159.11,159.04,22.0064]
[1724593331589,7.5430041,159.1,159.04,22.0067]
[1724593331895,46.2577041,159.09,159.04,22.0067]
[1724593332187,45.0,159.09,159.04,22.0067]
[1724593335486,45.0,159.09,159.05,6.2872]
[1724593342074,1.2577041,159.08,159.0,15.7223]
[1724593342575,6.2865,159.07,159.01,6.2885]
[1724593342782,45.0,159.06,159.02,6.2885]
[1724593345291,45.0,159.06,159.0,15.7223]
[1724593345292,45.0,159.06,159.03,7.54562329]
[1724593345496,45.0,159.07,159.03,6.2881]
[1724593362301,16.4635,159.12,159.04,1.25743267]
[1724593362604,6.2842,159.13,159.08,6.2859]
[1724593362813,6.2845,159.12,159.07,22.0023]
[1724593363720,45.0,159.11,159.07,22.0023]
[1724593366719,45.0,159.11,159.07,15.7158]
[1724593366912,45.0,159.11,159.07,16.97292649]
[1724593368202,51.2849,159.11,159.07,16.97292649]
[1724593368709,45.0,159.11,159.04,44.3165]
[1724593368907,1.2577041,159.1,159.04,22.31]
[1724593369206,6.2861,159.08,159.02,6.2881]
[1724593369411,6.2861,159.08,159.0,38.0323]
[1724593369412,51.2865,159.07,159.01,6.2885]
[1724593369607,6.2865,159.07,159.01,6.2885]
[1724593370017,6.2865,159.07,159.02,6.2883]
[1724593371515,6.2865,159.07,159.03,1.57374771]
[1724593371823,6.2865,159.07,159.02,6.2883]
[1724593372127,6.2865,159.07,159.03,1.57374755]
[1724593372330,6.2865,159.07,159.02,6.2883]
[1724593372514,6.2862,159.08,159.03,1.57373769]
[1724593372711,45.0,159.07,159.03,6.2879]
[1724593375512,51.2865,159.07,159.02,6.2884]
[1724593375737,51.2865,159.07,159.03,1.57372921]
[1724593375928,51.2865,159.07,159.02,6.2884]
[1724593376246,51.2865,159.07,159.03,1.57372896]
[1724593376533,51.2865,159.07,159.02,6.2884]
[1724593376732,51.2865,159.07,159.03,1.57372784]
[1724593376933,51.2865,159.07,159.02,6.2884]
[1724593377120,51.2865,159.07,159.03,7.86182768]
[1724593377316,51.2865,159.07,159.03,6.2881]
[1724593377732,1.2577041,159.06,159.02,6.2884]
[1724593377934,1.2577041,159.06,159.03,1.57374609]
[1724593378137,7.5446041,159.06,159.01,6.2888]
[1724593378341,1.2577041,159.06,159.02,7.86215499]